bitfinex/quotes_BTCUSD_20250508
["timestamp","ask_amount","ask_price","bid_price","bid_amount"]
[1746739064091,2.64492385,102800.0,102790.0,1.36011871]
[1746739064589,2.62867579,102800.0,102790.0,1.36827272]
[1746739064795,2.62166906,102800.0,102790.0,1.57993322]
[1746739065021,2.61013872,102800.0,102790.0,2.65215572]
[1746739065239,2.61013872,102800.0,102790.0,2.52116572]
[1746739065463,2.60299064,102800.0,102790.0,2.52116572]
[1746739065691,2.58620605,102800.0,102790.0,2.52116572]
[1746739065946,2.5258712,102800.0,102790.0,2.98138822]
[1746739066162,2.5091712,102800.0,102790.0,2.9813977]
[1746739066399,2.4700054,102800.0,102790.0,2.5211752]
[1746739066635,2.4480954,102800.0,102790.0,2.52804948]
[1746739066842,2.4384954,102800.0,102790.0,1.13159448]
[1746739067068,2.4286654,102800.0,102790.0,2.96759098]
[1746739067288,1.6423154,102800.0,102790.0,2.50736848]
[1746739067533,1.59367336,102800.0,102790.0,2.96759098]
[1746739067744,1.59367336,102800.0,102790.0,2.50736848]
[1746739067970,1.59367336,102800.0,102790.0,1.32664448]
[1746739068201,1.59367336,102800.0,102790.0,1.3714849]
[1746739068438,1.59367336,102800.0,102790.0,1.8390074]
[1746739068688,1.44252363,102800.0,102790.0,1.4091699]
[1746739068912,1.11078417,102800.0,102790.0,1.7191699]
[1746739069146,0.89433803,102800.0,102790.0,2.1793924]
[1746739069331,0.80088803,102800.0,102790.0,2.1793924]
[1746739069595,0.73482147,102800.0,102790.0,2.1793924]
[1746739069827,0.68617943,102800.0,102790.0,1.7793924]
[1746739070061,0.62574977,102800.0,102790.0,1.7793924]
[1746739070295,0.00025253,102820.0,102810.0,0.22371249]
[1746739070534,0.00025253,102820.0,102810.0,4.86090114]
[1746739070771,0.00025253,102820.0,102810.0,3.30668256]
[1746739071005,0.0056941,102820.0,102810.0,3.51668356]
[1746739071246,0.02298285,102830.0,102820.0,1.53823158]
[1746739071496,2.0,102850.0,102840.0,1.637005]
[1746739071497,1.95117292,102850.0,102840.0,1.637005]
[1746739071718,1.83528161,102850.0,102840.0,6.637005]
[1746739071948,1.80123219,102850.0,102840.0,7.1851663]
[1746739072171,1.79636799,102850.0,102840.0,7.1851663]
[1746739072428,0.00053398,102870.0,102860.0,1.62002242]
[1746739072658,0.28458789,102880.0,102870.0,1.41701607]
[1746739072887,0.28458789,102880.0,102870.0,6.54522323]
[1746739072888,0.25043531,102880.0,102870.0,6.54522323]
[1746739073111,0.215061,102880.0,102870.0,6.2769346]
[1746739073318,0.17614738,102880.0,102870.0,6.0544516]
[1746739073541,0.17119973,102880.0,102870.0,5.47830536]
[1746739073767,0.17119973,102880.0,102870.0,6.33446574]
[1746739073980,0.108,102890.0,102880.0,1.84570781]
[1746739074193,0.10814298,102890.0,102880.0,6.95528161]
[1746739074408,0.04393831,102930.0,102920.0,1.12783961]
[1746739074718,0.04408127,102930.0,102920.0,3.27529695]
[1746739074931,0.04408127,102930.0,102920.0,4.210851]
[1746739075148,0.02008127,102930.0,102920.0,4.33810045]
[1746739075384,0.14322194,102950.0,102940.0,1.57797082]
[1746739075599,0.14322194,102950.0,102940.0,5.98697108]
[1746739075810,0.14322194,102950.0,102940.0,3.09628247]
[1746739076034,0.14322194,102950.0,102940.0,1.71869743]
[1746739076254,0.14322194,102950.0,102940.0,1.78628843]
[1746739076469,0.14322194,102950.0,102940.0,2.20261286]
[1746739076689,0.09614168,102950.0,102940.0,2.30144934]
[1746739076903,0.0139165,102960.0,102950.0,1.00750577]
[1746739077120,0.0430526,102960.0,102950.0,1.31802277]
[1746739077339,0.0139165,102960.0,102950.0,1.08346204]
[1746739077552,0.00094994,102970.0,102960.0,1.46338657]
[1746739077763,0.1081492,102970.0,102960.0,1.95126965]
[1746739077978,0.1081492,102970.0,102960.0,0.84733406]
[1746739077979,0.78367352,102970.0,102960.0,0.84733406]
[1746739078190,0.79367352,102970.0,102960.0,0.85420834]
[1746739078401,0.11121621,102970.0,102960.0,0.73759491]
[1746739078648,0.00109287,102970.0,102960.0,1.74397491]
[1746739078855,0.51151782,102970.0,102960.0,1.08259491]
[1746739079075,0.02071922,102970.0,102960.0,1.67773676]
[1746739079294,0.00511922,102970.0,102960.0,2.27086248]
[1746739080215,0.03012993,102970.0,102960.0,1.56086963]
[1746739080431,0.71907634,102970.0,102960.0,0.51233406]
[1746739080649,0.250273,102970.0,102960.0,0.51233406]
[1746739080863,0.00511922,102970.0,102960.0,1.72871749]
[1746739081081,0.00511922,102970.0,102960.0,2.68025834]
[1746739081293,0.00109287,102970.0,102960.0,1.86247034]
[1746739081511,0.01639287,102970.0,102960.0,1.83451734]
[1746739081730,0.03259287,102970.0,102960.0,1.21026465]
[1746739081942,0.04230358,102970.0,102960.0,1.07143266]
[1746739082152,0.05201448,102970.0,102960.0,1.39494866]
[1746739082369,0.70505037,102970.0,102960.0,0.49933406]
[1746739082588,0.70505037,102970.0,102960.0,0.10433406]
[1746739082872,0.24624703,102970.0,102960.0,0.007]
[1746739083072,0.25624703,102970.0,102960.0,0.10566692]
[1746739083309,0.24624703,102970.0,102960.0,0.10566692]
[1746739083618,0.25514293,102970.0,102960.0,0.10566692]
[1746739083886,0.06568085,102970.0,102960.0,0.325996]
[1746739084127,0.21365416,102970.0,102960.0,0.10366692]
[1746739084358,0.75038084,102970.0,102960.0,0.005]
[1746739084807,0.75038084,102970.0,102960.0,0.003]
[1746739085037,0.75238084,102970.0,102960.0,0.003]
[1746739085264,0.75238084,102970.0,102920.0,0.23829029]
[1746739085265,0.03637578,102930.0,102920.0,0.23829029]
[1746739085498,0.03637578,102930.0,102920.0,0.71442497]
[1746739085774,0.23068259,102930.0,102920.0,0.50066692]
[1746739086014,0.21373682,102930.0,102920.0,0.50066692]
[1746739086650,0.0072311,102940.0,102930.0,0.21373701]
[1746739086837,0.0072311,102940.0,102920.0,0.84080985]
[1746739086838,0.21373682,102930.0,102920.0,0.84080985]
[1746739087140,0.24533682,102930.0,102920.0,1.04485172]
[1746739087403,0.0388311,102930.0,102920.0,1.07399952]
[1746739087622,0.04854568,102930.0,102920.0,1.0642839]
[1746739087836,0.0874057,102930.0,102920.0,1.03613553]
[1746739088063,0.2453372,102930.0,102920.0,0.84180985]
[1746739088288,0.0388311,102930.0,102920.0,1.04585172]
[1746739088519,0.02581317,102950.0,102920.0,3.39474053]
[1746739088765,0.04854474,102940.0,102930.0,0.32606114]
[1746739088981,0.0388311,102940.0,102930.0,0.3241186]
[1746739089212,0.05825884,102940.0,102930.0,0.44066692]
[1746739089438,0.04854483,102940.0,102930.0,0.67383375]
[1746739089653,0.05825847,102940.0,102930.0,0.67383375]
[1746739089880,0.07718659,102940.0,102930.0,0.67383385]
[1746739090099,0.08640174,102940.0,102930.0,0.67383385]
[1746739090323,0.08590174,102940.0,102930.0,0.67383385]
[1746739090542,0.07568735,102940.0,102930.0,1.07383385]
[1746739090768,0.06597305,102940.0,102930.0,1.08354852]
[1746739091252,0.06597305,102940.0,102930.0,1.07383385]
[1746739091474,0.06697305,102940.0,102930.0,1.08354852]
[1746739091661,0.06797305,102940.0,102930.0,1.08354852]
[1746739091872,0.06497305,102940.0,102930.0,1.08354852]
[1746739092071,0.24181643,102940.0,102930.0,0.84066692]
[1746739092334,0.24131643,102940.0,102930.0,0.84066692]
[1746739092554,0.24804753,102940.0,102930.0,1.04468897]
[1746739092779,0.06297399,102940.0,102930.0,1.06411888]
[1746739092996,0.06197399,102940.0,102930.0,1.06411888]
[1746739093231,0.06147399,102940.0,102930.0,1.06411888]
[1746739093494,0.06097286,102940.0,102930.0,1.06411888]
[1746739093719,0.06972728,102940.0,102930.0,1.06411888]
[1746739093939,0.0253311,102940.0,102930.0,1.07383365]
[1746739094198,0.0248311,102940.0,102930.0,1.09011839]
[1746739094434,0.0248311,102940.0,102930.0,5.06919459]
[1746739094435,0.0015,102940.0,102930.0,5.06919459]
[1746739094659,0.0015,102940.0,102930.0,4.61039125]
[1746739094660,0.001,102940.0,102930.0,4.61039125]
[1746739094929,0.81239816,103000.0,102930.0,4.64094884]
[1746739095174,0.01827894,103080.0,103070.0,0.02910529]
[1746739095408,0.01720974,103150.0,103140.0,0.22299672]
[1746739095647,0.06788049,103190.0,103150.0,0.19389238]
[1746739095904,0.39968,103190.0,103180.0,0.01]
[1746739096119,0.07525253,103220.0,103200.0,0.05841]
[1746739096331,0.049,103210.0,103200.0,0.83801843]
[1746739096548,0.21903007,103220.0,103210.0,0.70154065]
[1746739096762,0.21315859,103210.0,103190.0,0.70154065]
[1746739096991,0.0443087,103220.0,103200.0,0.70154065]
[1746739097211,0.33394521,103230.0,103220.0,0.67678022]
[1746739097437,0.37268914,103230.0,103220.0,0.10066692]
[1746739097673,0.15957366,103230.0,103220.0,0.40066692]
[1746739097887,0.15957366,103230.0,103220.0,1.07744714]
[1746739097888,0.36300279,103230.0,103220.0,1.07744714]
[1746739098099,0.20921375,103240.0,103230.0,0.50752021]
[1746739098559,0.18305515,103280.0,103270.0,0.12523841]
[1746739098774,0.05731674,103280.0,103270.0,1.93063498]
[1746739098998,0.07588992,103290.0,103280.0,0.70408278]
[1746739099207,0.20004,103300.0,103290.0,0.22267288]
[1746739099428,0.19116134,103300.0,103290.0,3.65367269]
[1746739099645,0.0259184,103340.0,103330.0,0.83918668]
[1746739099857,0.02582997,103340.0,103330.0,3.82024852]
[1746739100084,0.21553362,103400.0,103390.0,0.09487004]
[1746739100308,0.21553362,103400.0,103390.0,0.74606816]
[1746739100309,0.15462482,103400.0,103390.0,0.74606816]
[1746739100519,0.15462482,103400.0,103390.0,0.20311432]
[1746739100731,0.15462482,103400.0,103390.0,0.40260093]
[1746739100951,0.000479,103400.0,103390.0,0.40066692]
[1746739101166,0.57412009,103400.0,103390.0,0.10066692]
[1746739101396,0.52412009,103400.0,103390.0,0.10066692]
[1746739101620,0.25158819,103400.0,103390.0,0.10260087]
[1746739101856,0.24351613,103380.0,103360.0,0.10066692]
[1746739102052,0.27533188,103370.0,103360.0,0.10066692]
[1746739102292,0.03464684,103370.0,103360.0,0.10066692]
[1746739102513,0.25044649,103400.0,103380.0,0.20312866]
[1746739102514,0.0070229,103400.0,103380.0,0.20312866]
[1746739102758,0.0070229,103400.0,103390.0,2.02878552]
[1746739102976,0.0070229,103400.0,103390.0,2.72878552]
[1746739103193,0.0070229,103400.0,103390.0,2.87980472]
[1746739103411,0.08501858,103420.0,103410.0,1.5224145]
[1746739103636,0.13554307,103430.0,103420.0,0.92239298]
[1746739103842,0.13554307,103430.0,103420.0,5.49402636]
[1746739104083,0.13554307,103430.0,103420.0,5.19637414]
[1746739104084,0.01025253,103430.0,103420.0,5.19637414]
[1746739104298,0.25359979,103430.0,103420.0,1.59558931]
[1746739104525,0.30359979,103430.0,103420.0,0.10066692]
[1746739104747,0.24504471,103410.0,103400.0,0.00049]
[1746739104966,0.29504471,103410.0,103400.0,0.10115692]
[1746739105178,0.7817146,103410.0,103400.0,0.10115692]
[1746739105420,0.7817146,103410.0,103400.0,0.00049]
[1746739105666,0.09197286,103380.0,103370.0,0.00193411]
[1746739105944,0.09197286,103380.0,103300.0,0.65]
[1746739105945,0.21295064,103310.0,103300.0,0.65]
[1746739106229,0.00968222,103280.0,103270.0,0.6]
[1746739106493,0.19366708,103270.0,103250.0,0.6]
[1746739106760,0.21307458,103250.0,103240.0,0.3608758]
[1746739107006,0.22907458,103250.0,103240.0,0.10066692]
[1746739107258,0.73204429,103250.0,103240.0,0.89184892]
[1746739107523,0.73204429,103250.0,103190.0,0.64396461]
[1746739107524,0.20348817,103200.0,103190.0,0.64396461]
[1746739107755,0.20348817,103200.0,103190.0,0.19463153]
[1746739107756,0.016,103200.0,103190.0,0.19463153]
[1746739107959,0.016,103230.0,103220.0,0.25344884]
[1746739108181,0.016,103230.0,103220.0,0.97461181]
[1746739108398,0.22276948,103250.0,103240.0,0.25339985]
[1746739108399,0.016,103250.0,103240.0,0.25339985]
[1746739108618,0.016,103250.0,103240.0,0.10066692]
[1746739108619,0.0353698,103250.0,103240.0,0.10066692]
[1746739108839,0.85595855,103250.0,103240.0,0.10066692]
[1746739109052,0.23554874,103220.0,103210.0,0.00193703]
[1746739109286,0.0321,103220.0,103210.0,0.15066692]
[1746739109514,0.24523669,103220.0,103210.0,0.10066692]
[1746739109725,0.0151,103220.0,103210.0,0.15066692]
[1746739109951,0.00982967,103230.0,103220.0,0.65]
[1746739110159,0.00982967,103230.0,103220.0,0.05]
[1746739110160,0.22961604,103230.0,103220.0,0.05]
[1746739110447,0.02618691,103230.0,103220.0,0.29442781]
[1746739110658,0.59244759,103260.0,103240.0,0.19372336]
[1746739110659,0.14613959,103260.0,103240.0,0.19372336]
[1746739110910,0.02904292,103290.0,103280.0,0.24364594]
[1746739111155,0.21251231,103280.0,103270.0,0.39]
[1746739111381,0.20286994,103260.0,103250.0,0.05]
[1746739111592,0.21311566,103230.0,103220.0,0.15066692]
[1746739111814,0.01886942,103250.0,103240.0,0.05]
[1746739112053,0.01886942,103250.0,103220.0,1.35221292]
[1746739112054,0.20292903,103230.0,103220.0,0.10066692]
[1746739112302,0.23207934,103190.0,103180.0,0.66]
[1746739112552,0.16717193,103190.0,103180.0,0.11066692]
[1746739112778,0.18277193,103190.0,103180.0,0.00980391]
[1746739113013,0.22829866,103190.0,103180.0,0.11047083]
[1746739113257,0.22729847,103190.0,103180.0,0.11047083]
[1746739113475,0.22679773,103190.0,103180.0,0.54714683]
[1746739113686,0.24279829,103190.0,103180.0,0.06028291]
[1746739113912,0.03929011,103190.0,103180.0,0.35478584]
[1746739114147,0.0121,103190.0,103180.0,1.2714141]
[1746739114397,0.01937674,103210.0,103200.0,0.24377998]
[1746739114629,0.02618832,103210.0,103200.0,0.15066692]
[1746739114844,0.0162,103260.0,103250.0,0.2437046]
[1746739115053,0.01936173,103290.0,103280.0,0.24364053]
[1746739115272,0.23135397,103290.0,103280.0,0.10066692]
[1746739115563,0.21249224,103290.0,103280.0,0.4]
[1746739115800,0.00917754,103330.0,103310.0,0.1935921]
[1746739116037,0.19355615,103350.0,103330.0,0.19355463]
[1746739116260,0.26240962,103330.0,103320.0,0.10066692]
[1746739116489,0.21251249,103280.0,103270.0,0.05]
[1746739116721,0.21251249,103280.0,103270.0,0.15066692]
[1746739116722,0.19364833,103280.0,103270.0,0.15066692]
[1746739116952,0.34876,103280.0,103270.0,0.15066692]
[1746739117177,0.55209009,103280.0,103270.0,0.15066692]
[1746739117425,0.00968504,103250.0,103240.0,0.05]
[1746739117671,0.00968504,103250.0,103230.0,0.24374212]
[1746739117672,0.0152,103240.0,103230.0,0.24374212]
[1746739117900,0.22275867,103250.0,103240.0,0.482611]
[1746739118146,0.24447458,103250.0,103240.0,0.15066692]
[1746739118372,0.24447458,103250.0,103240.0,0.05]
[1746739118605,0.0152,103250.0,103240.0,0.34439028]
[1746739118833,0.02905117,103260.0,103250.0,0.2437046]
[1746739119067,0.34876,103280.0,103250.0,0.7037415]
[1746739119302,0.01936548,103270.0,103260.0,0.3462735]
[1746739119544,0.3930063,103280.0,103270.0,0.24366708]
[1746739119762,0.59317259,103280.0,103270.0,0.15066692]
[1746739120211,0.23486994,103260.0,103250.0,0.05]
[1746739120437,0.21928964,103250.0,103240.0,0.39241568]
[1746739120676,0.36466,103280.0,103270.0,0.21303331]
[1746739120912,0.0096811,103290.0,103280.0,0.24364833]
[1746739120913,0.0159,103290.0,103280.0,0.24364833]
[1746739121149,0.38973754,103330.0,103310.0,0.19357713]
[1746739121382,0.0152,103310.0,103300.0,0.05]
[1746739121609,0.22821268,103280.0,103270.0,0.39]
[1746739121855,0.18375686,103280.0,103270.0,0.49066692]
[1746739122087,0.20335024,103270.0,103260.0,0.05]
[1746739122314,0.02578316,103270.0,103260.0,0.29435276]
[1746739122541,0.0193652,103270.0,103260.0,0.29435276]
[1746739122772,0.0193652,103270.0,103260.0,0.82478976]
[1746739122773,0.02904817,103270.0,103260.0,0.82478976]
[1746739123002,0.02904808,103270.0,103260.0,0.82478976]
[1746739123395,0.0193652,103270.0,103260.0,0.92728976]
[1746739123423,0.01936576,103270.0,103260.0,0.82478976]
[1746739123634,0.03873096,103270.0,103260.0,1.10173676]
[1746739123836,0.00968251,103270.0,103260.0,0.84351876]
[1746739124049,0.00014273,103280.0,103260.0,2.07310513]
[1746739124263,0.22925522,103280.0,103270.0,0.10260281]
[1746739124686,0.22925522,103280.0,103230.0,0.6]
[1746739124687,0.19369479,103260.0,103230.0,0.6]
[1746739124899,0.19369479,103260.0,103250.0,0.29437152]
[1746739124900,0.01936717,103260.0,103250.0,0.29437152]
[1746739125108,0.22273739,103260.0,103250.0,0.29437152]
[1746739125293,0.03566613,103270.0,103260.0,0.19367661]
[1746739125560,0.03566613,103270.0,103260.0,0.29627991]
[1746739125824,0.02904921,103270.0,103260.0,1.43589053]
[1746739126034,0.19379758,103280.0,103270.0,0.53366708]
[1746739126035,0.00014273,103280.0,103270.0,0.53366708]
[1746739126251,0.00014273,103280.0,103270.0,1.20003126]
[1746739126456,0.00014273,103280.0,103270.0,1.13962226]
[1746739126945,0.00982439,103280.0,103270.0,1.13962226]
[1746739126948,0.00014273,103280.0,103270.0,1.72935726]
[1746739127125,0.02904048,103300.0,103290.0,0.53361429]
[1746739127359,0.21301249,103280.0,103270.0,0.640479]
[1746739127577,0.21301249,103280.0,103270.0,0.29794492]
[1746739127808,0.32214314,103280.0,103270.0,0.000479]
[1746739128022,0.03874296,103240.0,103230.0,0.49374077]
[1746739128236,0.22278007,103240.0,103230.0,0.93455042]
[1746739128452,0.01937017,103250.0,103240.0,0.19372336]
[1746739128663,0.01936782,103260.0,103250.0,0.1937046]
[1746739128869,0.0096856,103240.0,103230.0,0.50037331]
[1746739129146,0.22277978,103240.0,103230.0,0.10729946]
[1746739129370,0.22277978,103240.0,103230.0,0.00663254]
[1746739129371,0.67090568,103240.0,103230.0,0.00663254]
[1746739129604,0.7999726,103240.0,103230.0,0.00663254]
[1746739129835,0.34868,103240.0,103230.0,0.00014273]
[1746739130069,0.04534836,103270.0,103260.0,0.19368584]
[1746739130304,0.19371166,103260.0,103230.0,1.21052688]
[1746739130532,0.21960905,103240.0,103230.0,0.10080965]
[1746739130759,0.22929503,103240.0,103230.0,0.10080965]
[1746739130944,0.03557101,103240.0,103230.0,1.46574177]
[1746739131172,0.20005578,103240.0,103230.0,1.03455177]
[1746739131385,0.19366708,103270.0,103250.0,0.1937046]
[1746739131619,0.01936942,103250.0,103240.0,0.19372336]
[1746739131821,0.03873902,103250.0,103240.0,0.49471128]
[1746739132267,0.00968354,103260.0,103250.0,0.1937046]
[1746739132484,0.01936736,103260.0,103250.0,0.81378312]
[1746739132709,0.2227373,103260.0,103250.0,0.29437152]
[1746739132985,0.21305394,103260.0,103250.0,0.10066692]
[1746739133238,0.21305394,103260.0,103250.0,0.10260358]
[1746739134332,0.20337003,103260.0,103250.0,0.10260358]
[1746739134559,0.15579481,103260.0,103250.0,0.10260358]
[1746739134808,0.15579481,103260.0,103250.0,0.00605455]
[1746739134809,0.18619481,103260.0,103250.0,0.00605455]
[1746739135910,0.23378964,103250.0,103240.0,0.0079914]
[1746739136139,0.23378964,103250.0,103240.0,0.00605455]
[1746739136379,0.24349522,103240.0,103230.0,0.00619728]
[1746739137107,0.00968729,103220.0,103210.0,0.81483585]
[1746739137334,0.00968729,103220.0,103200.0,0.00712544]
[1746739137335,0.20346846,103210.0,103200.0,0.00712544]
[1746739137553,0.213178,103200.0,103190.0,0.19381723]
[1746739137772,0.143178,103200.0,103190.0,0.10114503]
[1746739138438,0.143178,103200.0,103190.0,0.10772051]
[1746739138655,0.00968907,103200.0,103190.0,1.26572189]
[1746739138874,0.00484514,103200.0,103190.0,0.26153774]
[1746739139099,0.20344874,103220.0,103200.0,0.19379844]
[1746739139321,0.01937664,103210.0,103200.0,0.53379844]
[1746739139542,0.02906515,103210.0,103200.0,1.38332536]
[1746739139766,0.37781998,103230.0,103220.0,0.19376089]
[1746739139986,0.02906271,103220.0,103210.0,1.14416382]
[1746739140203,0.36813307,103230.0,103220.0,0.19376089]
[1746739140436,0.22282426,103220.0,103210.0,0.44066692]
[1746739140671,0.24523669,103220.0,103210.0,0.10066692]
[1746739140920,0.24523669,103220.0,103210.0,0.50066692]
[1746739141603,0.0193758,103220.0,103210.0,1.30483074]
[1746739141848,0.0321,103210.0,103190.0,0.00047811]
[1746739142098,0.0321,103210.0,103180.0,0.00980391]
[1746739142099,0.19494118,103190.0,103180.0,0.00980391]
[1746739142318,0.19494118,103190.0,103160.0,0.44590295]
[1746739142319,0.21323962,103170.0,103160.0,0.44590295]
[1746739142541,0.21323962,103170.0,103160.0,0.44396461]
[1746739142764,0.26323962,103170.0,103160.0,0.44396461]
[1746739142985,0.22833962,103170.0,103160.0,0.44396461]
[1746739143678,0.22833962,103170.0,103160.0,0.4]
[1746739143900,0.20848498,103170.0,103160.0,0.4]
[1746739144125,0.00047536,103170.0,103160.0,1.95196825]
[1746739144310,0.03876577,103180.0,103170.0,0.53383912]
[1746739144611,0.00969274,103170.0,103160.0,0.89335966]
[1746739144838,0.20354754,103170.0,103160.0,0.99416981]
[1746739145055,0.21323999,103170.0,103160.0,0.70124656]
[1746739145281,0.21323999,103170.0,103160.0,0.50081015]
[1746739145477,0.21323999,103170.0,103160.0,0.40014323]
[1746739145952,0.21323999,103170.0,103160.0,0.59401682]
[1746739146182,0.03876925,103170.0,103160.0,2.08786215]
[1746739146403,0.01938406,103170.0,103160.0,1.85222582]
[1746739146633,0.19381862,103190.0,103170.0,0.19383883]
[1746739146850,0.01938293,103180.0,103170.0,0.29644384]
[1746739147070,0.02907454,103180.0,103170.0,0.57450575]
[1746739147254,0.21321913,103180.0,103170.0,0.10066692]
[1746739147516,0.21321913,103180.0,103170.0,0.2964599]
[1746739147738,0.01793783,103190.0,103180.0,0.53383601]
[1746739147951,0.02907051,103190.0,103180.0,1.88248734]
[1746739148166,0.01937918,103200.0,103190.0,0.34]
[1746739148404,0.21317762,103200.0,103190.0,0.44066692]
[1746739148615,0.01938444,103170.0,103160.0,1.53401682]
[1746739148833,0.21321932,103180.0,103170.0,1.07020121]
[1746739149053,0.21321932,103180.0,103170.0,1.17086813]
[1746739149054,0.00969095,103180.0,103170.0,1.17086813]
[1746739149274,0.02907144,103190.0,103180.0,0.53382633]
[1746739149493,0.0096902,103190.0,103180.0,0.83129325]
[1746739149718,0.02906891,103200.0,103190.0,0.19381723]
[1746739149931,0.23255622,103200.0,103190.0,0.90717027]
[1746739150142,0.21319847,103190.0,103180.0,0.34]
[1746739150350,0.20350799,103190.0,103180.0,0.34]
[1746739150776,0.19376089,103220.0,103190.0,0.22288885]
[1746739151034,0.21315716,103210.0,103200.0,0.0019375]
[1746739151266,0.193768,103250.0,103210.0,0.34968898]
[1746739151477,0.22278064,103240.0,103230.0,0.8044838]
[1746739151695,0.02905793,103240.0,103230.0,1.0833728]
[1746739151900,0.2125955,103240.0,103230.0,1.01074841]
[1746739152112,0.2125955,103240.0,103230.0,0.4]
[1746739152351,0.2115955,103240.0,103230.0,0.4]
[1746739152568,0.2110955,103240.0,103230.0,0.4]
[1746739153212,0.00968569,103240.0,103230.0,0.69440904]
[1746739153427,0.02905146,103260.0,103250.0,0.1937046]
[1746739153653,0.0387395,103250.0,103240.0,1.14447177]
[1746739153868,0.03873865,103250.0,103240.0,1.63427469]
[1746739154096,0.00968598,103240.0,103230.0,0.4]
[1746739154316,0.00968598,103240.0,103230.0,0.84066692]
[1746739154317,0.20340934,103240.0,103230.0,0.84066692]
[1746739154743,0.03873921,103250.0,103240.0,0.19372336]
[1746739155016,0.23244448,103250.0,103240.0,0.29439028]
[1746739155443,0.00968419,103260.0,103250.0,0.1937046]
[1746739155628,0.21305395,103260.0,103250.0,0.10260355]
[1746739155870,0.00968382,103260.0,103250.0,0.64340947]
[1746739156097,0.00968185,103280.0,103270.0,0.19366708]
[1746739156329,0.20349302,103270.0,103260.0,0.95074841]
[1746739156545,0.20336994,103260.0,103250.0,0.71851665]
[1746739156760,0.21305395,103260.0,103250.0,0.34]
[1746739157221,0.21305395,103260.0,103250.0,0.74]
[1746739157450,0.02905182,103260.0,103250.0,1.42111152]
[1746739157658,0.00014268,103270.0,103250.0,1.4328215]
[1746739157846,0.22285906,103270.0,103260.0,0.90510117]
[1746739158058,0.22285906,103270.0,103260.0,1.18560317]
[1746739158276,0.01950816,103270.0,103260.0,0.91115582]
[1746739158503,0.03887458,103270.0,103260.0,1.27342782]
[1746739158729,0.03887458,103270.0,103260.0,1.19223482]
[1746739158952,0.23254166,103270.0,103260.0,0.10672157]
[1746739159179,0.20336994,103260.0,103250.0,0.74605465]
[1746739159393,0.20336994,103260.0,103250.0,0.84672157]
[1746739159612,0.20336994,103260.0,103250.0,0.74741362]
[1746739159838,0.20336994,103260.0,103250.0,0.4]
[1746739160094,0.21235694,103260.0,103250.0,0.4]
[1746739160321,0.20338964,103250.0,103240.0,0.04385214]
[1746739160541,0.21958964,103250.0,103240.0,0.04385214]
[1746739160779,0.21958964,103250.0,103220.0,0.05894059]
[1746739160780,0.21311566,103230.0,103220.0,0.05894059]
[1746739161013,0.24471566,103230.0,103220.0,0.05894059]
[1746739161237,0.20344874,103220.0,103210.0,0.05894059]
[1746739161499,0.69451566,103220.0,103210.0,0.05894059]
[1746739162179,0.65591786,103220.0,103210.0,0.05908382]
[1746739162398,0.34506846,103210.0,103200.0,0.0913002]
[1746739162669,0.22941895,103180.0,103170.0,0.11408518]
[1746739162895,0.20354735,103170.0,103160.0,0.0534033]
[1746739163344,0.2215419,103170.0,103160.0,0.0534033]
[1746739163556,0.32220882,103170.0,103160.0,0.0534033]
[1746739164008,0.23067863,103170.0,103160.0,0.0534033]
[1746739164233,0.21938681,103150.0,103140.0,0.0138369]
[1746739164452,0.21332232,103130.0,103120.0,0.0706015]
[1746739164697,0.31398924,103130.0,103120.0,0.0706015]
[1746739164918,0.35836742,103130.0,103120.0,0.0706015]
[1746739165374,0.2133637,103110.0,103100.0,6e-05]
[1746739165601,0.31403062,103110.0,103100.0,6e-05]
[1746739166057,0.72736809,103090.0,103080.0,0.0721597]
[1746739166295,1.16691501,103090.0,103080.0,0.0721597]
[1746739166543,0.28012506,103080.0,103070.0,0.0534033]
[1746739166761,0.33079198,103080.0,103070.0,0.0534033]
[1746739166983,0.21346721,103060.0,103050.0,0.15515584]
[1746739168056,0.0194055,103060.0,103050.0,0.15515584]
[1746739168265,0.21360963,103060.0,103050.0,0.27355167]
[1746739168470,0.21360963,103060.0,103050.0,0.27161119]
[1746739168682,0.21360963,103060.0,103040.0,0.19409879]
[1746739168683,0.21360982,103060.0,103040.0,0.19409879]
[1746739168895,0.01940701,103050.0,103040.0,0.63476571]
[1746739169103,0.00984503,103060.0,103050.0,0.19408054]
[1746739169319,0.21360982,103060.0,103050.0,0.19408054]
[1746739169520,0.0388142,103050.0,103040.0,0.63476571]
[1746739169731,0.02911037,103050.0,103040.0,0.63476571]
[1746739170162,0.03881421,103050.0,103040.0,1.03476571]
[1746739170409,0.00984493,103060.0,103050.0,0.54378447]
[1746739170607,0.21360953,103060.0,103050.0,0.34]
[1746739171034,0.20378437,103050.0,103040.0,0.4]
[1746739171256,0.21348811,103050.0,103040.0,1.03476629]
[1746739171528,0.20378437,103050.0,103040.0,0.85037188]
[1746739171757,0.20378437,103050.0,103040.0,0.84066692]
[1746739172478,0.20378437,103050.0,103040.0,0.84673398]
[1746739172734,0.01940673,103050.0,103040.0,1.05053831]
[1746739172959,0.01940682,103050.0,103040.0,1.06024299]
[1746739173209,0.02925006,103060.0,103050.0,0.55348821]
[1746739173421,0.00014223,103060.0,103050.0,1.26433814]
[1746739173657,0.02924978,103060.0,103050.0,1.67824557]
[1746739173885,0.01954792,103060.0,103050.0,0.84032935]
[1746739174182,0.21360963,103060.0,103050.0,0.83931651]
[1746739174413,0.21360963,103060.0,103050.0,0.85872446]
[1746739174635,0.01954792,103060.0,103050.0,1.2684282]
[1746739174910,0.00014223,103060.0,103050.0,1.93242338]
[1746739175133,0.00984446,103060.0,103050.0,1.93242338]
[1746739175445,0.21360944,103060.0,103050.0,0.94456905]
[1746739175676,0.21360944,103060.0,103050.0,0.41475805]
[1746739176335,0.00014223,103060.0,103050.0,0.93104651]
[1746739176565,0.01954735,103060.0,103050.0,1.04950551]
[1746739176798,0.02925024,103060.0,103050.0,1.04950551]
[1746739177027,0.21360953,103060.0,103050.0,0.75475805]
[1746739177288,0.21360953,103060.0,103050.0,0.41475805]
[1746739177534,0.00014223,103060.0,103050.0,1.67149761]
[1746739177775,0.00014223,103060.0,103050.0,2.26084062]
[1746739178004,0.00014223,103060.0,103050.0,1.66435245]
[1746739178213,0.00014223,103060.0,103050.0,2.27664062]
[1746739178438,0.34904,103090.0,103080.0,0.19402405]
[1746739178650,0.1940506,103110.0,103080.0,0.54566472]
[1746739178856,0.1940506,103110.0,103090.0,1.24696032]
[1746739178857,0.00969791,103110.0,103090.0,1.24696032]
[1746739179072,0.00970007,103090.0,103080.0,0.01475805]
[1746739179326,0.2037053,103090.0,103080.0,0.00869099]
[1746739179569,0.2037053,103090.0,103080.0,0.40869099]
[1746739179795,0.30437222,103090.0,103080.0,0.01475629]
[1746739180008,0.40710287,103090.0,103080.0,0.01475629]
[1746739180224,1.07549104,103090.0,103080.0,0.01523165]
[1746739180502,0.34567222,103090.0,103080.0,0.00464066]
[1746739180763,0.30437222,103090.0,103080.0,0.00047536]
[1746739180987,0.32957222,103090.0,103080.0,0.00047536]